Cogmind - Beta 13 @@@ ROGUE MODE // 2024.08.04 @ 18:11:33 Player: Sgt. SmokeWeed Result: Self-destructed Performance ------------- Evolutions (1) 500 Regions Visited (6) 1200 Robots Destroyed (16) 80 Value Destroyed (496) 496 Prototype IDs (23) 460 Alien Tech Used (0) 0 Bonus (300) 300 TOTAL SCORE: 3036 Bonus ------- Aligned with FarCom 300 Cogmind --------- Core Integrity 266/400 Matter 189/300 Energy 160/160 System Corruption 0% Temperature Warning (357) Movement Treading (160) Location -8/Mines Parts ------- > --- POWER (1) -------- Light Nuclear Core > --- PROPULSION (2) --- Light Treads > --- UTILITY (2) ------ (None) > --- WEAPON (4) ------- XL Autogun Array > --- INVENTORY (5) ---- (None) Peak State ------------ > --- POWER ------------ Light Nuclear Core > --- PROPULSION ------- Light Treads > --- UTILITY ---------- (None) > --- WEAPON ----------- XL Autogun Array > --- INVENTORY -------- (None) [Rating: 40] Favorites ----------- Power Ion Engine Engine Ion Engine Power Core Light Nuclear Core Propulsion Light Treads Treads Light Treads Utility None Weapon EM Pulse Gun Energy Gun EM Pulse Gun Ballistic Gun Light Assault Rifle Build | -11 -10 -10 -9 -9 -9 -8 ------- Run | Yrd Mat Min Mat Min Exi Min Slots Evolved 2 | . . . 2 . . . Power . | . . . . . . . Propulsion . | . . . . . . . Utility . | . . . . . . . Weapon 2 | . . . 2 . . . Parts Attached 11 | 5 . . 4 . 1 1 Power 2 | 1 . . . . . 1 Engine 1 | 1 . . . . . . Core 1 | . . . . . . 1 Reactor . | . . . . . . . Propulsion 2 | 2 . . . . . . Treads 2 | 2 . . . . . . Leg . | . . . . . . . Wheel . | . . . . . . . Hover . | . . . . . . . Flight . | . . . . . . . Utility . | . . . . . . . Device . | . . . . . . . Storage . | . . . . . . . Processor . | . . . . . . . Hackware . | . . . . . . . Protection . | . . . . . . . Artifact . | . . . . . . . Weapon 7 | 2 . . 4 . 1 . Energy Gun 5 | 1 . . 4 . . . Energy Cannon . | . . . . . . . Ballistic Gun 2 | 1 . . . . 1 . Ballistic Cannon . | . . . . . . . Launcher . | . . . . . . . Special Weapon . | . . . . . . . Impact Weapon . | . . . . . . . Slashing Weapon . | . . . . . . . Piercing Weapon . | . . . . . . . Special Melee Weapon . | . . . . . . . Unidentified Prototypes . | . . . . . . . Parts Lost 2 | . . . . 1 . 1 Power 1 | . . . . . . 1 Propulsion 1 | . . . . 1 . . Utility . | . . . . . . . Weapon . | . . . . . . . Highest Loss Streak 1 | . . . . 1 . 1 To Critical Strikes . | . . . . . . . Average Slot Usage (%) 64 | . 71 71 75 69 50 29 Engine 12 | . 14 14 11 11 11 3 Treads 20 | . 28 28 22 14 11 11 Energy Gun 24 | . 14 14 41 44 23 . Ballistic Gun 7 | . 14 14 . . 5 11 Naked Turns . | . . . . . . . Heaviest Build 20 | 8 8 8 13 13 20 20 Greatest Support 40 | 40 40 40 40 40 20 20 Greatest Overweight (x) . | . . . . . . . Average Overweight (x) . | . . . . . . . Largest Inventory Capacity 5 | 5 5 5 5 5 5 5 Average Capacity 5 | 5 5 5 5 5 5 5 Most Carried 1 | . . . 1 1 1 . Average Carried . | . . . . 1 . . Final Capacity 5 | 5 5 5 5 5 5 5 Final Carried 1 | . . . 1 1 . . Class Distribution -------------------- 55% | Gunner 43% | Mutant Dominant Class ---------------- Mutant | -10/Materials Mutant | -10/Mines Gunner | -9/Materials Gunner | -9/Mines Gunner | -9/Exiles Skirmisher | -8/Mines Resources | -11 -10 -10 -9 -9 -9 -8 ----------- Run | Yrd Mat Min Mat Min Exi Min Matter Collected 447 | 224 . 11 62 49 . 101 Remotely . | . . . . . . . Salvage Created 573 | . 147 . 101 144 . 181 Parts 34 | . 16 . 6 4 . 8 Haulers Intercepted . | . . . . . . . Recyclers Shooed . | . . . . . . . Parts Field Recycled . | . . . . . . . Retrieved Matter . | . . . . . . . Parts Self-Destructed . | . . . . . . . Prevented . | . . . . . . . Kills | -11 -10 -10 -9 -9 -9 -8 ------- Run | Yrd Mat Min Mat Min Exi Min Combat Hostiles Destroyed 13 | . 5 . 1 3 . 4 Guns 11 | . 4 . 1 2 . 4 AOE 2 | . 1 . . 1 . . Classes Destroyed 4 | . 3 . . . . 1 Watcher 3 | . 1 . 2 . . . Swarmer 3 | . 3 . . . . . Grunt 9 | . 2 . 1 3 . 3 Duelist 1 | . . . . . . 1 Best Kill Streak 6 | . 6 . 2 2 . 4 Combat Bots Only 5 | . 5 . 1 2 . 4 Max Kills in Single Turn 2 | . 2 . 1 2 . 1 Gunslinging 1 | . 1 . . 1 . . Exploded 1 | . 1 . . 1 . . Melee . | . . . . . . . Uniques/NPCs Destroyed . | . . . . . . . Combat | -11 -10 -10 -9 -9 -9 -8 -------- Run | Yrd Mat Min Mat Min Exi Min Hostile Shots Fired 67 | . 27 . 7 11 . 22 Missed 10 | . 6 . 1 . . 3 Damage Taken 827 | . 220 . 68 185 . 354 Core 159 | . 25 . . 82 . 52 Absorbed by Shields . | . . . . . . . Core Remaining (%) 95 | 100 . 90 . . . . Volleys Fired 30 | . 7 . 5 5 . 13 Largest 4 | . 2 . 4 4 . 1 Hottest 160 | . 60 . 160 160 . 60 Shots Fired 67 | . 14 . 20 20 . 13 Gun 67 | . 14 . 20 20 . 13 Cannon . | . . . . . . . Launcher . | . . . . . . . Special . | . . . . . . . Kinetic 20 | . 7 . . . . 13 Thermal . | . . . . . . . Explosive . | . . . . . . . Electromagnetic 47 | . 7 . 20 20 . . Robot Hit Streak 10 | . 9 . 10 5 . 7 Robot Miss Streak 4 | . 4 . 3 1 . 3 Penetration Max . | . . . . . . . Secondary Targets 4 | . 2 . 1 1 . . Max Gunslinging Chain 1 | . 1 . 1 1 . . Shots Hit Robots 46 | . 9 . 9 15 . 13 Core Hits 27 | . 6 . 5 7 . 9 Critical Kills . | . . . . . . . Critical Parts Destroyed . | . . . . . . . Critical Strikes 1 | . . . 1 . . . Corrupt 1 | . . . 1 . . . Melee Attacks . | . . . . . . . Impact . | . . . . . . . Slashing . | . . . . . . . Piercing . | . . . . . . . Sneak Attacks . | . . . . . . . Combat Hostiles . | . . . . . . . Follow-up Attacks . | . . . . . . . Damage Inflicted 1454 | . 190 . 243 236 . 785 Guns 1234 | . 103 . 152 194 . 785 Cannons . | . . . . . . . Explosions 219 | . 87 . 90 42 . . Melee . | . . . . . . . Ramming 1 | . . . 1 . . . Kinetic 812 | . 27 . . . . 785 Thermal 219 | . 87 . 90 42 . . Explosive . | . . . . . . . Electromagnetic 422 | . 76 . 152 194 . . Impact . | . . . . . . . Slashing . | . . . . . . . Piercing . | . . . . . . . Highest Corruption . | . . . . . . . Average Corruption . | . . . . . . . Corruption Purged . | . . . . . . . Corruption Blocked . | . . . . . . . Overload Shots . | . . . . . . . Overflow Damage . | . . . . . . . Projectiles . | . . . . . . . Explosions . | . . . . . . . Melee . | . . . . . . . Knockbacks . | . . . . . . . Impact . | . . . . . . . Kinetic . | . . . . . . . Secondary . | . . . . . . . Self-Inflicted Damage 72 | . 34 . . 38 . . Shots 2 | . 1 . . 1 . . Rammed 1 | . . . 1 . . . Targets Rammed 1 | . . . 1 . . . Kicked . | . . . . . . . Crushed . | . . . . . . . Highest Temperature 370 | . 82 . 338 370 . 368 Average Temperature 164 | . 38 . 152 168 . 277 Received Heat Transfer 315 | . 30 . 36 87 . 162 Effects 4 | . . . . 2 . 2 Shutdowns 1 | . . . . . . 1 Interference 1 | . . . . 1 . . Matter Decay 1 | . . . . 1 . . Short Circuit 1 | . . . . . . 1 Siege Activations . | . . . . . . . Robots Corrupted . | . . . . . . . Combat Hostiles . | . . . . . . . Parts Fried 2 | . . . . 2 . . Impact Corruptions . | . . . . . . . Robots Melted . | . . . . . . . Combat Hostiles . | . . . . . . . Parts Melted . | . . . . . . . Heat Transferred 300 | . 150 . 100 50 . . Parts Sabotaged . | . . . . . . . Parts Stolen . | . . . . . . . Parts Stripped . | . . . . . . . Power Chain Reactions 4 | . 1 . 2 1 . . Alert | -11 -10 -10 -9 -9 -9 -8 ------- Run | Yrd Mat Min Mat Min Exi Min Peak Influence 150 | . 150 58 73 106 . 97 Initial 58 | . . 58 22 28 . . Average 44 | . 30 58 26 73 . 37 Maximum Alert Level . | . . . . . . . Low Security (%) 100 | 100 100 100 100 100 . 100 Level 1 . | . . . . . . . Level 2 . | . . . . . . . Level 3 . | . . . . . . . Level 4 . | . . . . . . . Level 5 . | . . . . . . . High Security . | . . . . . . . Max Security . | . . . . . . . Squads Dispatched 3 | . 1 . 2 . . . Investigation 1 | . 1 . . . . . Extermination . | . . . . . . . Reinforcement 2 | . . . 2 . . . Assault . | . . . . . . . Garrison . | . . . . . . . Intercept . | . . . . . . . Searches Triggered . | . . . . . . . Construction Impeded . | . . . . . . . Haulers Reinforced . | . . . . . . . Active Scanning Responses . | . . . . . . . Cargo Convoy Interrupts . | . . . . . . . Stealth | -11 -10 -10 -9 -9 -9 -8 --------- Run | Yrd Mat Min Mat Min Exi Min Distress Signals 4 | . 1 . 3 . . . Communications Jammed . | . . . . . . . Distress Signals . | . . . . . . . Times Spotted 26 | . 6 1 9 4 . 6 Peak Tracking Total 6 | . 6 2 3 3 . 6 Tactical Retreats 1 | . . . . 1 . . Traps | -11 -10 -10 -9 -9 -9 -8 ------- Run | Yrd Mat Min Mat Min Exi Min Traps Triggered 1 | . 1 . . . . . Indirectly . | . . . . . . . Trap Hack Attempts . | . . . . . . . Triggered . | . . . . . . . Disarmed . | . . . . . . . Reprogrammed . | . . . . . . . Reused . | . . . . . . . Traps Extracted . | . . . . . . . Installed . | . . . . . . . Triggered . | . . . . . . . Machines | -11 -10 -10 -9 -9 -9 -8 ---------- Run | Yrd Mat Min Mat Min Exi Min Machines Disabled 1 | . 1 . . . . . Max in Single Turn 1 | . 1 . . . . . Machines Repaired . | . . . . . . . Machines Dismantled . | . . . . . . . Machines Sabotaged . | . . . . . . . Overloaded Fab Kills . | . . . . . . . Hacking | -11 -10 -10 -9 -9 -9 -8 --------- Run | Yrd Mat Min Mat Min Exi Min Machines Accessed 3 | . 1 . . 1 1 . Terminals 2 | . 1 . . 1 . . Fabricators . | . . . . . . . Repair Stations . | . . . . . . . Recycling Units . | . . . . . . . Scanalyzers . | . . . . . . . Garrison Access . | . . . . . . . Total Hacks 4 | . 1 . . 2 1 . Successful 2 | . 1 . . . 1 . Failed 2 | . . . . 2 . . Catastrophic 1 | . . . . 1 . . Database Lockouts . | . . . . . . . Manual 4 | . 1 . . 2 1 . Terminals 3 | . 1 . . 2 . . Fabricators . | . . . . . . . Repair Stations . | . . . . . . . Recycling Units . | . . . . . . . Scanalyzers . | . . . . . . . Garrison Access . | . . . . . . . Terminal Hacks 2 | . 1 . . . 1 . Branch Access Points 1 | . 1 . . . . . Derelict Proto ID Bank 1 | . . . . . 1 . Fabricator Hacks . | . . . . . . . Repair Station Hacks . | . . . . . . . Recycling Unit Hacks . | . . . . . . . Scanalyzer . | . . . . . . . Garrison Access Hacks . | . . . . . . . Unauthorized Hacks . | . . . . . . . Terminals . | . . . . . . . Fabricators . | . . . . . . . Repair Stations . | . . . . . . . Recycling Units . | . . . . . . . Scanalyzers . | . . . . . . . Garrison Access . | . . . . . . . Data Cores Recovered . | . . . . . . . Used . | . . . . . . . Hacking Detections 1 | . . . . 1 . . Full Trace Events 1 | . . . . 1 . . Feedback Events . | . . . . . . . Feedback Blocked . | . . . . . . . Robot Schematics Acquired . | . . . . . . . Robots Built . | . . . . . . . Authchips . | . . . . . . . Time . | . . . . . . . Total Robot Build Rating . | . . . . . . . Part Schematics Acquired . | . . . . . . . Parts Built . | . . . . . . . Authchips . | . . . . . . . Time . | . . . . . . . Total Part Build Rating . | . . . . . . . Parts Repaired . | . . . . . . . Time . | . . . . . . . Parts Recycled . | . . . . . . . Recycled Matter . | . . . . . . . Retrieved Matter . | . . . . . . . Retrieved Components . | . . . . . . . Parts Scanalyzed . | . . . . . . . Part Schematics Acquired . | . . . . . . . Parts Damaged . | . . . . . . . Bothacking | -11 -10 -10 -9 -9 -9 -8 ------------ Run | Yrd Mat Min Mat Min Exi Min Used RIF Installer . | . . . . . . . Robots Hacked . | . . . . . . . Non-combat . | . . . . . . . Combat . | . . . . . . . Robot Hacks Applied . | . . . . . . . Relay Couplers Released . | . . . . . . . Fabnet Peak Effective % . | . . . . . . . Robots Rewired . | . . . . . . . Allies Hacked . | . . . . . . . Hacks Repelled . | . . . . . . . Allies | -11 -10 -10 -9 -9 -9 -8 -------- Run | Yrd Mat Min Mat Min Exi Min Total Allies . | . . . . . . . Largest Group . | . . . . . . . Highest-Rated Group . | . . . . . . . Highest-Rated Ally . | . . . . . . . Total Orders . | . . . . . . . Ally Attacks . | . . . . . . . Total Damage . | . . . . . . . Kills . | . . . . . . . Allies Corrupted . | . . . . . . . Allies Melted . | . . . . . . . Intel | -11 -10 -10 -9 -9 -9 -8 ------- Run | Yrd Mat Min Mat Min Exi Min Robot Analysis Total . | . . . . . . . Derelict Logs Recovered 1 | . . 1 . . . . Drone Launches . | . . . . . . . Drone Recoveries . | . . . . . . . Exploration | -11 -10 -10 -9 -9 -9 -8 ------------- Run | Yrd Mat Min Mat Min Exi Min Turns Passed 1204 | 56 145 309 191 127 350 26 Spaces Moved 705 | 36 79 194 104 68 217 7 Core 7 | 7 . . . . . . Treads 698 | 29 79 194 104 68 217 7 Legs . | . . . . . . . Wheels . | . . . . . . . Hover . | . . . . . . . Flight . | . . . . . . . Fastest Speed 50 | 50 160 160 160 160 160 160 Average Speed 158 | 138 160 160 160 160 160 160 Slowest Speed 160 | 160 160 160 160 160 160 160 Overloaded Moves . | . . . . . . . Propulsion Burnouts . | . . . . . . . Robots Hopped . | . . . . . . . Cave-ins Triggered . | . . . . . . . Exploration Rate (%) 26 | 3 30 51 21 17 60 3 Regions Visited 6 Branch Regions 4 Pre-discovered Areas . | . . . . . . . Known Exits Taken 1 | . 1 . . . . . Unknown Exits Taken 5 | 1 . 1 1 1 1 . Scrap Searched 1 | . . 1 . . . . Spaces Dug . | . . . . . . . Terrain Destroyed 20 | . . . 6 3 . 11 Melee . | . . . . . . . Projectile 11 | . . . . . . 11 AOE 9 | . . . 6 3 . . Terrain Rammed . | . . . . . . . Walls Destroyed . | . . . . . . . Machines Disabled . | . . . . . . . Actions | -11 -10 -10 -9 -9 -9 -8 --------- Run | Yrd Mat Min Mat Min Exi Min Total 749 | 40 85 193 114 74 222 21 Wait 2 | . . . . 2 . . Move 699 | 35 78 193 103 67 216 7 Hop . | . . . . . . . Pick Up . | . . . . . . . Fast Attach 10 | 5 . . 3 . 1 1 Attach . | . . . . . . . Detach . | . . . . . . . Swap 1 | . . . 1 . . . Drop 6 | . . . 1 . 5 . Fire 30 | . 7 . 5 5 . 13 Melee . | . . . . . . . Ram . | . . . . . . . Kick . | . . . . . . . Crush 1 | . . . 1 . . . Escape Stasis . | . . . . . . . Rewire . | . . . . . . . Trap . | . . . . . . . Miscellaneous . | . . . . . . . Route ------- -11/Scrapyard -10/Materials -10/Mines -9/Materials -9/Mines -9/Exiles (discovered 2 exits: [*Min x2]) -8/Mines History --------- Turn | Location | Event 13 | -11/Scrapyard | Discovered new exit (range 15) 57 | -11/Scrapyard | Entered Materials 70 | -10/Materials | Identified exit to Mines 202 | -10/Materials | Entered Mines 305 | -10/Mines | Build established: Mutant 494 | -10/Mines | Discovered new exit (range 11) 511 | -10/Mines | Entered Materials 511 | -9/Materials | Evolved 2 slots: Weapon x2 675 | -9/Materials | Discovered new exit (range 8) 702 | -9/Materials | Entered Mines 821 | -9/Mines | Build established: Gunner 821 | -9/Mines | Deemed a non-threat by the Exiles lab entrance 823 | -9/Mines | Discovered new exit (range 5) 829 | -9/Mines | Entered Exiles 855 | -9/Exiles | Discovered new exit (range 15) 874 | -9/Exiles | Met 8R-AWN 900 | -9/Exiles | Met EX-HEX 948 | -9/Exiles | Met EX-BIN 967 | -9/Exiles | Aligned with FarCom system 969 | -9/Exiles | Given EX-Vault access code 1005 | -9/Exiles | Opened EX-Vault 1017 | -9/Exiles | Found XL Autogun Array 1052 | -9/Exiles | Warned to stay clear of 0b10 Research branches 1099 | -9/Exiles | Met EX-DEC 1160 | -9/Exiles | Discovered new exit (range 10) 1179 | -9/Exiles | Left Exiles lab with XL Autogun Array 1179 | -9/Exiles | Entered Mines 1205 | -8/Mines | Self-destructed Last Messages --------------- EXIT=FOUND LOCATION=UNKNOWN GOAL=ESCAPE Receiving FarCom transmissions... T-07 Excavator is excavating. G-47 Trooper destroyed. T-07 Excavator is excavating. Ion Engine destroyed. Destroyed Lgt. Nuclear Core. Destroyed Particle Gun. G-47 Trooper destroyed. T-07 Excavator is excavating. Acquired Lgt. Nuclear Core. Acquired 46 matter. G-50 Soldier destroyed. L-31 Rogue destroyed. Acquired 55 matter. Power failure, Lgt. Nuclear Core shutdown. XL Autogun Array broken. Overheating: Short circuit. Map ----- +----------------------------------------------------+ | ??????????????????????????????????? | | ??????????????????????????????????? | | ??????????????????????????????????? | | ??????????????????????????????????? | | ??????????????????????????????????? | | ??????????????????????????????????? | | ??????????????????????????????????? | | ??????????????????????????????????? | | ??????????????????????????????????? | | ??????????????????????????????????? | | ??????????????????????????????????? | | ??????????????????????????????????? | | ??????????????????????????????????? | | ??????????????????????????????????? | | ??????????????????g???????????????? | | ?????????????????#????????????????? | | ?????????????????# ?####??????????? | | ?????????????????# ## ??????????? | | ?????????????????? ??????????? | | ???????? ???????# #??????????? | | ????????? #### #??????????? | | ?????????????? #####??????? | | ???????????????????# ;; #??????? | | ???????????????????##g [%*/#??????? | | ????????????????????## =%!##?????? | | ?????????????????????##;!@= #?????? | | ??????????????????????###;#;#?????? | | ????????????????????????# ## #????? | | ????????????????????????##??? ????? | | | | | | | | | | | | | | | | | | | | | | | | | | | | | | | | | | | | | | | | | | | +----------------------------------------------------+ Best States ------------- Heat Dissipation 28 Energy Generation 14 Energy Capacity 250 Matter Stores 300 Matter Capacity 300 Sight Range 16 Terrain Scan Density 10 Evasion (%) 40 Recoil Reduction 2 Item Schematics ----------------- None Robot Schematics ------------------ None Fabricated ------------ Nothing Alien Tech Used ----------------- None Achievements -------------- None Challenges ------------ None Game ------ Seed SupersonicAblativePropulsion Manual? 0 Play Time 00:05:46 Cumulative 62.5 hours Start 2024.08.04 @ 18:05:36 End 2024.08.04 @ 18:11:33 Sessions 3 Manual Loads 0 Difficulty Rogue Special Mode None Game No. 143 Rogue 68 Adventurer 75 Explorer 0 Win Type - Total 0 Types 0/0/0/0/0/0/0/0/0 Lore% 37 Gallery% 43 Achievement% 33 Wizard Run 0 Options --------- Layout 0 ASCII 0 Keyboard 0 Movement Mouse Keybinds 0 Fullscreen 1 Font 24/Smallcaps Map View 76x50 Zoom Use 0% Tactical HUD 0 Map Filters NONE Filters NONE Steam 1 RUN: c4ea7cf8-ac08-4e7b-b651-c172353b8f87